bitfinex-derivatives/quotes_SOLF0:USTF0_20250527
["timestamp","ask_amount","ask_price","bid_price","bid_amount"]
[1748308758919,5.8288513,172.66,172.63,0.03730002]
[1748308759219,0.0386513,172.66,172.63,0.03730002]
[1748308761515,5.7905,172.65,172.63,0.03730002]
[1748308761723,0.0386513,172.66,172.63,0.03730002]
[1748308762021,5.7903,172.65,172.63,0.03730002]
[1748308762210,0.0386513,172.66,172.57,139.2]
[1748308762519,0.0386513,172.66,172.57,249.24]
[1748308763220,0.0386513,172.66,172.6,0.04332421]
[1748308764819,0.0386513,172.66,172.65,5.7903]
[1748308765015,0.0386513,172.66,172.65,254.9903]
[1748308765218,139.18,172.78,172.65,249.2]
[1748308765419,15.69100962,172.77,172.65,139.18]
[1748308765614,2.79143982,172.76,172.65,139.18]
[1748308765820,2.79143982,172.75,172.65,139.18]
[1748308766022,12.8995698,172.77,172.65,139.18]
[1748308766214,0.04310563,172.72,172.68,0.03992165]
[1748308766613,5.7885,172.71,172.68,0.03992165]
[1748308767017,5.83130563,172.72,172.68,0.03992165]
[1748308767221,0.04310563,172.72,172.68,0.03992165]
[1748308768617,139.20310563,172.72,172.55,139.16]
[1748308768826,12.8995698,172.65,172.43,139.16]
[1748308769017,12.8995698,172.65,172.46,12.8995698]
[1748308769222,139.14,172.67,172.46,12.8995698]
[1748308769425,12.8995698,172.69,172.47,110.0]
[1748308769624,139.14,172.68,172.48,139.14]
[1748308769823,139.14,172.68,172.56,0.04267756]
[1748308769824,0.04282892,172.6,172.56,0.04267756]
[1748308770023,0.03797998,172.6,172.56,139.18331103]
[1748308770224,0.03797998,172.6,172.49,500.16]
[1748308770425,12.88950974,172.63,172.5,144.9353]
[1748308770826,152.02950974,172.63,172.5,139.14]
[1748308771030,12.88950974,172.59,172.5,139.14]
[1748308771325,0.04379209,172.56,172.53,0.03986477]
[1748308771521,0.04379209,172.56,172.41,500.16]
[1748308771723,12.89944049,172.57,172.42,139.14]
[1748308771920,12.89944049,172.57,172.43,109.98]
[1748308772126,12.89944049,172.57,172.45,5.7969]
[1748308772321,12.89944049,172.57,172.43,109.98]
[1748308772522,5.7949,172.52,172.45,5.7969]
[1748308772728,0.03843044,172.52,172.48,0.04260655]
[1748308773229,5.83313044,172.52,172.48,0.04260655]
[1748308773921,0.03843044,172.52,172.48,0.04260655]
[1748308774425,0.03843044,172.52,172.51,5.795]
[1748308774823,0.03843044,172.52,172.51,144.955]
[1748308775031,0.03843044,172.52,172.51,139.16]
[1748308776633,0.03843044,172.52,172.48,0.04260655]
[1748308776829,21.5982505,172.52,172.48,0.04260655]
[1748308777037,5.7968,172.46,172.4,5.7987]
[1748308777230,5.7968,172.46,172.37,139.2]
[1748308777537,5.7964,172.47,172.4,5.7984]
[1748308777730,139.2,172.51,172.37,139.2]
[1748308777929,0.03781515,172.46,172.42,0.04158092]
[1748308780241,5.83451515,172.46,172.42,0.04158092]
[1748308780435,0.03781515,172.46,172.42,0.04158092]
[1748308781336,0.03781515,172.46,172.43,5.7977]
[1748308781529,0.03781515,172.46,172.42,0.04158092]
[1748308782234,5.7976,172.44,172.42,0.04158092]
[1748308782534,0.03781515,172.46,172.42,0.04158092]
[1748308782736,21.5795982,172.43,172.19,21.5795982]
[1748308782935,2.80102181,172.42,172.22,139.26]
[1748308783136,21.5795982,172.39,172.18,146.13963321]
[1748308783336,21.5795982,172.36,172.18,146.13963321]
[1748308783543,144.78,172.39,172.19,110.08]
[1748308783840,5.8021,172.3,172.23,5.8044]
[1748308784037,0.03656448,172.31,172.27,0.04340142]
[1748308784237,0.0405079,172.31,172.27,0.04256119]
[1748308785546,0.0405079,172.31,172.28,5.8026]
[1748308785945,0.0405079,172.31,172.27,0.04256119]
[1748308788749,0.0405079,172.31,172.29,5.8023]
[1748308789248,0.0405079,172.31,172.27,0.04256119]
[1748308789449,0.0405079,172.31,172.29,5.8023]
[1748308789652,0.0405079,172.31,172.3,144.86]
[1748308790047,0.0405079,172.31,172.3,150.662]
[1748308790551,0.0405079,172.31,172.3,144.86]
[1748308791649,0.0405079,172.31,172.27,0.04256119]
[1748308792049,0.0405079,172.31,172.27,144.92256119]
[1748308792453,0.0405079,172.31,172.3,5.802]
[1748308797056,0.0405079,172.31,172.28,5.8024]
[1748308797456,0.0405079,172.31,172.27,144.92256119]
[1748308798156,0.0405079,172.31,172.27,0.04256119]
[1748308801855,0.0405079,172.31,172.27,5.84536119]
[1748308802054,0.0405079,172.31,172.27,0.04256119]
[1748308802453,0.0405079,172.31,172.28,5.8025]
[1748308802657,0.0405079,172.31,172.27,0.04256119]
[1748308802958,0.0405079,172.31,172.28,144.94]
[1748308804056,0.0405079,172.31,172.27,0.04256119]
[1748308804266,5.8027,172.28,172.27,0.04256119]
[1748308804457,0.0405079,172.31,172.27,0.04256119]
[1748308807162,5.8027,172.28,172.27,0.04256119]
[1748308807757,0.0405079,172.31,172.18,5.8058]
[1748308807961,163.4797968,172.3,172.16,651.12]
[1748308808261,150.56,172.29,172.16,656.9267]
[1748308808451,5.8051,172.22,172.16,656.9267]
[1748308808649,150.56,172.29,172.16,656.9267]
[1748308808858,0.03795374,172.24,172.21,0.02745437]
[1748308809056,5.8047,172.22,172.21,0.02745437]
[1748308809561,0.03795374,172.24,172.21,0.02745437]
[1748308810158,5.8047,172.23,172.21,0.02745437]
[1748308810560,5.8047,172.22,172.21,0.02745437]
[1748308810860,12.9197968,172.2,172.02,150.56]
[1748308811056,12.9197968,172.18,172.01,2.0569]
[1748308811256,155.45350555,172.17,171.95,62.5]
[1748308811457,12.96687635,172.15,171.95,62.5]
[1748308811663,152.6792,172.17,171.96,1.9459]
[1748308811664,0.04080687,172.07,171.96,1.9459]
[1748308811861,0.03729197,172.03,171.95,62.5]
[1748308812057,0.03729197,172.03,171.95,213.1]
[1748308812265,0.03729197,172.03,171.95,62.5]
[1748308812761,150.6,172.02,171.95,62.5]
[1748308812963,12.9878318,171.99,171.82,2.0593]
[1748308813165,0.03936688,171.92,171.82,2.0593]
[1748308813459,0.03936688,171.92,171.82,4.0803]
[1748308814861,0.03936688,171.92,171.81,196.64032396]
[1748308815064,0.04184651,171.88,171.81,196.64032396]
[1748308815270,0.04184651,171.88,171.87,5.8166]
[1748308815472,0.04184651,171.88,171.87,156.34]
[1748308815670,0.04184651,171.88,171.66,145.8121]
[1748308815671,0.04184651,171.88,171.71,502.91963321]
[1748308815867,0.04079567,171.81,171.8,5.8189]
[1748308816065,0.04436648,171.82,171.8,164.74]
[1748308816267,0.03980339,171.83,171.82,5.8183]
[1748308816470,0.03664603,171.84,171.82,1.9632]
[1748308816668,21.71198245,171.97,171.72,1.1261319]
[1748308816669,0.04181223,171.85,171.83,164.74]
[1748308816873,0.0443194,171.86,171.83,164.74]
[1748308817176,0.04118584,171.86,171.83,164.74]
[1748308818070,0.04118584,171.86,171.85,5.8173]
[1748308818470,0.04118584,171.86,171.83,170.558]
[1748308818671,0.04118584,171.86,171.83,164.74]
[1748308819077,0.04118584,171.86,171.82,171.48]
[1748308819674,0.04118584,171.86,171.85,5.8173]
[1748308820175,0.04118584,171.86,171.84,5.8176]
[1748308820478,0.04118584,171.86,171.82,171.48]
[1748308821271,0.04118584,171.86,171.8,171.56]
[1748308821676,0.04118584,171.86,171.81,5.8186]
[1748308821874,0.04118584,171.86,171.75,171.56]
[1748308822072,0.03948038,171.82,171.73,2.0405]
[1748308822276,0.03948038,171.82,171.7,171.56]
[1748308822477,0.04216372,171.78,171.7,171.56]
[1748308822677,0.04216372,171.78,171.68,69.31818182]
[1748308823880,0.04216372,171.78,171.69,2.0116]
[1748308824080,0.04216372,171.78,171.69,2.1317]
[1748308824383,0.04216372,171.78,171.77,5.82]
[1748308825283,0.04216372,171.78,171.7,2.0228]
[1748308825769,0.04216372,171.78,171.76,5.8201]
[1748308825971,0.04216372,171.78,171.7,2.0228]
[1748308826182,0.04216372,171.78,171.73,5.8213]
[1748308826479,0.04216372,171.78,171.74,177.62]
[1748308826873,0.04216372,171.78,171.7,2.0228]
[1748308827280,5.8201,171.77,171.7,2.0228]
[1748308827479,0.04216372,171.78,171.7,7.8449]
[1748308827981,0.04216372,171.78,171.7,2.0228]
[1748308828183,0.04216372,171.78,171.63,177.7401]
[1748308828370,0.04216372,171.78,171.63,181.708]
[1748308828772,0.04216372,171.78,171.69,177.62]
[1748308828981,0.04216372,171.78,171.69,199.36343531]
[1748308829174,0.04216372,171.78,171.77,5.82]
[1748308829379,0.04216372,171.78,171.77,183.5]
[1748308829675,0.04216372,171.78,171.77,177.68]
[1748308829879,0.04216372,171.78,171.73,177.68]
[1748308830084,0.04216372,171.78,171.74,3.9967]
[1748308830284,0.04216372,171.78,171.77,5.82]
[1748308830480,6.372e-05,171.78,171.77,5.82]
[1748308830688,177.68,171.94,171.83,5.8178]
[1748308830880,5.8159,171.9,171.81,177.68]
[1748308831078,177.68,171.97,171.82,177.68]
[1748308831280,21.74343531,171.94,171.82,177.68]
[1748308831480,177.68,171.97,171.82,177.68]
[1748308831980,0.04256931,171.91,171.88,0.03843595]
[1748308833087,5.8156,171.9,171.88,0.03843595]
[1748308833479,0.04256931,171.91,171.88,0.03843595]
[1748308834181,5.8159,171.89,171.88,0.03843595]
[1748308834779,5.8159,171.89,171.88,3.595e-05]
[1748308836082,11.6359,171.89,171.88,3.595e-05]
[1748308837188,5.8159,171.89,171.88,3.595e-05]
[1748308837486,177.68,171.9,171.88,3.595e-05]
[1748308837691,0.04256931,171.91,171.88,3.595e-05]
[1748308837876,5.85806931,171.91,171.88,3.595e-05]
[1748308838080,0.04256931,171.91,171.88,3.595e-05]
[1748308838687,5.8159,171.89,171.88,3.595e-05]
[1748308839284,5.82,171.89,171.78,680.12]
[1748308839486,1.9973,171.88,171.78,680.12]
[1748308839680,5.817,171.86,171.78,680.12]
[1748308840391,1.9973,171.88,171.78,680.12]
[1748308840392,0.03900424,171.84,171.78,680.12]
[1748308840592,0.03900424,171.84,171.75,0.1173]
[1748308843088,0.03900424,171.84,171.78,21.74343531]
[1748308843388,0.03900424,171.84,171.75,0.1173]
[1748308844095,0.03900424,171.84,171.78,21.74343531]
[1748308844490,0.03900424,171.84,171.83,5.818]
[1748308844694,0.03900424,171.84,171.83,293.998]
[1748308845397,0.03900424,171.84,171.83,177.68]
[1748308847092,0.03900424,171.84,171.75,177.7973]
[1748308847995,0.03900424,171.84,171.75,183.6179]
[1748308848191,5.8187,171.81,171.75,177.68]
[1748308848392,0.04288128,171.8,171.75,177.68]
[1748308849102,0.04288128,171.8,171.76,5.8201]
[1748308849294,0.04288128,171.8,171.75,177.68]
[1748308849694,0.04288128,171.8,171.79,5.8193]
[1748308849897,0.04288128,171.8,171.68,246.99818182]
[1748308850097,0.04035785,171.76,171.68,246.99818182]
[1748308853902,0.04035785,171.76,171.68,69.31818182]
[1748308854198,2.79054869,171.75,171.68,69.31818182]
[1748308854496,5.8227,171.69,171.68,69.31818182]
[1748308854701,178.10176044,171.7,171.57,1.8983]
[1748308854891,21.74343531,171.66,171.51,5.8285]
[1748308855091,0.03991481,171.6,171.43,502.56]
[1748308855302,0.03951367,171.53,171.43,682.5183]
[1748308855602,0.03951367,171.53,171.43,793.0383]
[1748308855902,2.79307799,171.52,171.42,76.13636364]
[1748308856096,0.03743664,171.49,171.42,76.13636364]
[1748308857496,0.03743664,171.49,171.43,288.7]
[1748308857695,0.03743664,171.49,171.44,2.0145]
[1748308858205,0.03743664,171.49,171.42,76.13636364]
[1748308858801,21.74343531,171.48,171.42,76.13636364]
[1748308859401,0.03743664,171.49,171.42,76.13636364]
[1748308860003,0.03743664,171.49,171.42,81.96826364]
[1748308860399,0.03743664,171.49,171.42,76.13636364]
[1748308860601,0.03743664,171.49,171.43,191.2]
[1748308861109,0.03743664,171.49,171.43,197.0315]
[1748308861305,0.03743664,171.49,171.43,191.2]
[1748308862399,0.03743664,171.49,171.48,5.8298]
[1748308862602,5.25199463,171.58,171.43,191.2]
[1748308862800,5.25199463,171.58,171.51,5.8288]
[1748308863001,5.25199463,171.58,171.51,110.64]
[1748308863402,5.25199463,171.58,171.51,1.9492]
[1748308863706,0.03937642,171.56,171.53,0.04027366]
[1748308864005,5.8278,171.55,171.53,0.04287883]
[1748308864202,0.04257754,171.56,171.53,0.04287883]
[1748308865710,0.04257754,171.56,171.54,5.8278]
[1748308866105,0.04257754,171.56,171.53,199.20287883]
[1748308866408,1.8943,171.65,171.53,199.20287883]
[1748308866705,204.41199463,171.73,171.55,21.80869671]
[1748308866901,5.8227,171.7,171.56,21.80869671]
[1748308867208,204.41199463,171.73,171.56,525.02869671]
[1748308867410,0.03798187,171.66,171.63,0.03799778]
[1748308867708,0.04061934,171.66,171.63,0.03799778]
[1748308870107,0.04061934,171.66,171.54,1.9037]
[1748308870308,1.9887,171.67,171.5,201.0387]
[1748308870513,5.826,171.6,171.5,201.0387]
[1748308870803,23.79739671,171.67,171.5,1.8987]
[1748308871009,21.80869671,171.63,171.49,1.93]
[1748308871307,0.04204457,171.58,171.54,0.04029178]
[1748308871513,5.86854457,171.58,171.54,0.04029178]
[1748308871810,0.04204457,171.58,171.54,0.04029178]
[1748308872209,5.86884457,171.58,171.54,0.04029178]
[1748308872407,0.04204457,171.58,171.54,0.04029178]
[1748308874907,5.8274,171.55,171.54,0.04029178]
[1748308875113,0.04204457,171.58,171.54,0.04029178]
[1748308877909,0.04204457,171.58,171.57,5.8268]
[1748308878113,1.8882,171.69,171.57,205.94]
[1748308878307,5.8246,171.64,171.55,0.1157]
[1748308878502,21.80869671,171.68,171.51,2.0002]
[1748308878717,2.091,171.67,171.51,2.0002]
[1748308879215,2.091,171.67,171.57,0.03981147]
[1748308879216,0.0387156,171.61,171.57,0.03981147]
[1748308879415,0.0387156,171.61,171.57,5.86661147]
[1748308879612,0.0387156,171.61,171.57,0.03981147]
[1748308879810,0.0387156,171.61,171.58,205.94]
[1748308880716,0.0387156,171.61,171.6,5.8257]
[1748308882606,1.97,171.71,171.57,0.03981147]
[1748308882812,21.80869671,171.69,171.53,1.9117]
[1748308883414,1.97,171.71,171.53,23.72039671]
[1748308883615,0.04054394,171.64,171.61,5.8254]
[1748308883812,0.04456923,171.64,171.61,211.78510172]
[1748308884015,0.04456923,171.64,171.61,205.95970172]
[1748308884212,0.04456923,171.64,171.62,5.8248]
[1748308884413,0.04456923,171.64,171.61,205.95970172]
[1748308885814,1.97,171.71,171.62,613.78]
[1748308886123,1.97,171.71,171.62,615.7601]
[1748308886421,1.97,171.71,171.66,5.8234]
[1748308886613,802.12,171.7,171.42,76.13636364]
[1748308886813,0.03898029,171.58,171.54,0.03817087]
[1748308887013,0.03900002,171.58,171.54,0.04372535]
[1748308887208,5.85900002,171.58,171.44,205.9]
[1748308887412,5.8295,171.49,171.44,205.9]
[1748308887617,21.76718318,171.56,171.43,205.9]
[1748308888322,0.03927685,171.51,171.48,0.04438418]
[1748308888513,5.8298,171.49,171.42,282.03636364]
[1748308888715,227.66718318,171.56,171.42,76.13636364]
[1748308889409,0.04276892,171.51,171.47,0.04076624]
[1748308890517,5.87156892,171.51,171.47,0.04076624]
[1748308890819,0.04276892,171.51,171.47,0.04076624]
[1748308891017,5.8295,171.5,171.47,0.04076624]
[1748308891216,0.04276892,171.51,171.47,0.04076624]
[1748308891621,5.8294,171.5,171.47,0.04076624]
[1748308892117,5.8294,171.5,171.42,76.13636364]
[1748308892320,5.8295,171.49,171.42,76.13636364]
[1748308892710,5.8295,171.49,171.44,5.8311]
[1748308892920,1.9299,171.53,171.42,76.13636364]
[1748308893221,0.04021786,171.49,171.46,0.04283758]
[1748308895519,5.8301,171.48,171.46,0.04283758]
[1748308895716,21.81772489,171.47,171.42,66.70616364]
[1748308896012,21.81772489,171.43,171.29,1.9556]
[1748308896412,124.0,171.72,171.3,1.65787972]
[1748308896611,0.04451911,171.46,171.3,1.65787972]
[1748308896812,0.03753132,171.4,171.31,21.81772489]
[1748308897015,10.60752519,171.68,171.3,1.65787972]
[1748308897221,2.0775,171.56,171.35,21.81772489]
[1748308897415,2.0775,171.56,171.39,21.81772489]
[1748308897620,2.0775,171.56,171.4,704.6356]
[1748308897816,2.0775,171.56,171.41,309.96]
[1748308898017,0.04220129,171.5,171.47,0.03860596]
[1748308902725,5.25199463,171.59,171.47,614.25860596]
[1748308902921,11.07819463,171.59,171.54,5.8277]
[1748308903126,5.25199463,171.59,171.55,199.26]
[1748308903828,5.29286496,171.59,171.55,199.3017109]
[1748308904130,0.04087033,171.59,171.55,199.3017109]
[1748308904732,0.04087033,171.59,171.58,5.8264]
[1748308905123,1.9261,171.69,171.56,112.7699]
[1748308905318,4.90099381,171.68,171.56,112.7699]
[1748308905823,4.90099381,171.68,171.56,2.0499]
[1748308906024,0.04108362,171.64,171.6,0.04135632]
[1748308906327,0.04108362,171.64,171.61,193.02]
[1748308907331,5.25199463,171.76,171.61,193.02]
[1748308907628,27.06971952,171.76,171.66,5.8234]
[1748308907829,27.06971952,171.76,171.67,192.98]
[1748308908030,5.8217,171.72,171.67,192.98]
[1748308908328,0.04100472,171.71,171.68,0.04210719]
[1748308909223,5.8227,171.7,171.68,0.04210719]
[1748308909628,0.04100472,171.71,171.68,0.04210719]
[1748308910724,5.8246,171.64,171.22,1.66942357]
[1748308910935,21.81772489,171.65,171.5,810.9693]
[1748308911429,21.81772489,171.67,171.5,700.3093]
[1748308911632,21.81772489,171.67,171.5,4.1493]
[1748308911633,21.81772489,171.6,171.5,4.1493]
[1748308911829,21.81772489,171.54,171.41,503.22]
[1748308912131,21.81772489,171.54,171.42,5.8315]
[1748308912627,4.0049,171.59,171.45,5.8307]
[1748308912827,4.0049,171.59,171.41,503.22]
[1748308912828,21.81772489,171.56,171.41,503.22]
[1748308913032,21.81772489,171.56,171.5,0.0390659]
[1748308913234,4.0049,171.59,171.5,0.0390659]
[1748308913425,0.0367315,171.55,171.5,0.0390659]
[1748308914024,5.8278,171.54,171.5,0.0390659]
[1748308914229,0.0367315,171.55,171.5,0.0390659]
[1748308914834,5.8281,171.54,171.5,0.0390659]
[1748308915037,0.0367315,171.55,171.5,0.0390659]
[1748308917338,21.81772489,171.62,171.5,0.0390659]
[1748308917537,25.79562489,171.65,171.49,4.0371]
[1748308918239,0.0404394,171.59,171.55,0.0448404]
[1748308918438,0.0404394,171.59,171.56,192.98]
[1748308919537,0.0404394,171.59,171.56,198.8068]
[1748308919840,21.81772489,171.68,171.56,192.98]
[1748308920031,21.81772489,171.68,171.59,5.8258]
[1748308920233,21.81772489,171.68,171.57,2.0837]
[1748308920733,5.9146,171.71,171.43,11.6625]
[1748308920734,0.03853394,171.64,171.61,2.562e-05]
[1748308920934,0.03853394,171.64,171.4,192.96]
[1748308920935,21.81772489,171.59,171.4,192.96]
[1748308921141,5.8297,171.49,171.42,5.8317]
[1748308921338,5.8297,171.49,171.42,198.7917]
[1748308921544,21.81772489,171.54,171.42,192.96]
[1748308921849,0.04252556,171.5,171.46,0.04242617]
[1748308922445,1.8863,171.58,171.46,503.42242617]
[1748308922634,1.8863,171.58,171.46,503.38]
[1748308923147,1.8863,171.58,171.47,110.7]
[1748308923353,1.8863,171.58,171.48,192.98]
[1748308923643,0.03674514,171.55,171.51,0.04338086]
[1748308923840,0.0414957,171.55,171.51,0.04455607]
[1748308924344,21.81772489,171.63,171.51,0.04455607]
[1748308924542,5.8254,171.61,171.54,5.8278]
[1748308924742,5.8254,171.61,171.55,186.96]
[1748308924942,5.8254,171.61,171.56,186.94]
[1748308925445,0.0428232,171.6,171.57,0.0424478]
[1748308926042,0.0428232,171.6,171.57,503.3824478]
[1748308926442,5.8264,171.59,171.58,186.94]
[1748308926643,0.0428232,171.6,171.58,186.94]
[1748308927040,5.8264,171.58,171.57,4.78e-05]
[1748308927242,49.49827298,171.6,171.41,186.94]
[1748308927447,21.81772489,171.54,171.42,2.0721]
[1748308928250,0.03692282,171.5,171.46,0.03846316]
[1748308928649,21.85464771,171.5,171.46,0.03846316]
[1748308929945,21.85464771,171.5,171.37,2.0721]
[1748308929946,21.85464771,171.5,171.4,186.94]
[1748308930137,1.9592,171.49,171.4,186.94]
[1748308930340,21.81772489,171.46,171.37,5.8333]
[1748308930539,3.9218,171.49,171.37,186.94]
[1748308930747,21.81772489,171.45,171.37,186.94]
[1748308930943,0.04334808,171.43,171.39,0.03705622]
[1748308931347,0.04334808,171.43,171.41,5.832]
[1748308931640,0.04334808,171.43,171.39,0.03705622]
[1748308932850,0.04334808,171.43,171.39,5.86985622]
[1748308933048,0.04334808,171.43,171.39,0.03705622]
[1748308933950,5.8322,171.41,171.39,0.03705622]
[1748308934153,0.04334808,171.43,171.39,0.03705622]
[1748308934755,21.81772489,171.41,171.28,3.8918]
[1748308935050,21.81772489,171.37,171.28,7.761]
[1748308935241,21.81772489,171.37,171.28,1.9244]
[1748308935444,1.8996,171.4,171.28,1.9244]
[1748308935648,0.04157984,171.36,171.32,0.03720338]
[1748308936156,0.04157984,171.36,171.33,5.8349]
[1748308936343,0.04157984,171.36,171.32,187.03720338]
[1748308936650,2.0039,171.48,171.32,187.03720338]
[1748308936842,2.0039,171.48,171.32,187.0]
[1748308937243,5.8316,171.43,171.32,187.0]
[1748308937447,2.0039,171.48,171.36,0.03811024]
[1748308937448,0.04227101,171.39,171.36,0.03811024]
[1748308937645,0.0369579,171.39,171.36,0.04460489]
[1748308937951,5.8305,171.47,171.36,0.04460489]
[1748308938148,5.8305,171.47,171.35,505.5876]
[1748308938452,192.25199463,171.5,171.35,505.5876]
[1748308938653,5.25199463,171.5,171.35,505.5876]
[1748308938856,0.04206581,171.44,171.43,5.8314]
[1748308939047,5.25199463,171.5,171.43,187.04]
[1748308939248,21.81772489,171.52,171.43,187.04]
[1748308939444,5.8296,171.49,171.43,187.04]
[1748308939650,21.81772489,171.52,171.43,187.04]
[1748308940049,0.03865447,171.49,171.46,0.04318078]
[1748308941855,0.03865447,171.49,171.46,5.87358078]
[1748308942058,0.03865447,171.49,171.46,0.04318078]
[1748308943358,0.03865447,171.49,171.46,5.87348078]
[1748308943559,0.03865447,171.49,171.47,187.04]
[1748308945057,5.9184,171.59,171.47,187.04]
[1748308945260,27.73612489,171.59,171.48,1.9677]
[1748308945453,5.9184,171.59,171.48,1.9677]
[1748308945658,5.8265,171.58,171.52,5.8284]
[1748308945857,5.8265,171.58,171.48,1.9677]
[1748308945858,3.9627,171.59,171.48,4.0167]
[1748308946060,0.04378773,171.55,171.52,0.04406289]
[1748308946257,21.81772489,171.54,171.32,503.56]
[1748308946469,21.81772489,171.5,171.33,189.069]
[1748308946670,5.8329,171.39,171.23,198.6966]
[1748308946869,21.81772489,171.43,171.24,4.0167]
[1748308947173,5.8342,171.36,171.29,5.836]
[1748308947478,0.04362465,171.34,171.31,0.04281077]
[1748308947770,0.04099822,171.34,171.32,187.02]
[1748308948268,0.04099822,171.34,171.33,5.8349]
[1748308948471,21.81772489,171.48,171.33,110.74]
[1748308948769,21.81772489,171.44,171.33,110.74]
[1748308948971,21.81772489,171.44,171.32,187.02]
[1748308949167,21.81772489,171.4,171.32,187.02]
[1748308949362,0.0443807,171.38,171.34,0.03875281]
[1748308949567,0.04036747,171.38,171.34,0.03723871]
[1748308950167,0.04036747,171.38,171.37,5.8336]
[1748308950671,5.9897,171.49,171.41,5.8322]
[1748308950874,5.9897,171.49,171.41,187.06]
[1748308951276,3.9627,171.49,171.41,187.06]
[1748308951670,3.9627,171.49,171.43,0.04358467]
[1748308951671,0.03692381,171.47,171.43,0.04358467]
[1748308953072,5.86732381,171.47,171.43,0.04358467]
[1748308953270,0.03692381,171.47,171.43,0.04358467]
[1748308954671,0.03692381,171.47,171.44,5.8309]
[1748308954863,0.03692381,171.47,171.43,0.04358467]
[1748308955070,0.03692381,171.47,171.45,187.88]
[1748308955477,0.03692381,171.47,171.43,0.04358467]
[1748308956871,0.03692381,171.47,171.43,5.87508467]
[1748308957073,0.03692381,171.47,171.43,0.04358467]
[1748308957678,0.03692381,171.47,171.43,5.87498467]
[1748308957872,0.03692381,171.47,171.44,187.88]
[1748308958279,0.03692381,171.47,171.44,189.8292]
[1748308958478,0.03692381,171.47,171.46,5.8305]
[1748308958678,21.82503493,171.56,171.45,110.76]
[1748308958878,21.82503493,171.56,171.45,112.8438]
[1748308959682,0.04115232,171.52,171.49,0.04421353]
[1748308960483,5.8291,171.5,171.49,0.04421353]
[1748308960677,0.04115232,171.52,171.49,0.04421353]
[1748308962782,1.9189,171.61,171.5,187.86]
[1748308962983,1.9189,171.61,171.51,2.0523]
[1748308963378,5.826,171.6,171.54,5.8277]
[1748308963578,1.9189,171.61,171.51,2.0523]
[1748308963780,0.04442735,171.58,171.54,0.03892359]
[1748308964585,5.25199463,171.64,171.54,503.55892359]
[1748308964985,21.82503493,171.72,171.54,503.55892359]
[1748308965179,21.82503493,171.72,171.54,503.52]
[1748308965480,0.03689617,171.65,171.61,0.04049032]
[1748308965783,0.03689617,171.65,171.62,187.82]
[1748308966480,5.25199463,171.73,171.62,187.82]
[1748308966681,5.8227,171.69,171.63,7.909]
[1748308966882,5.9915,171.74,171.63,7.909]
[1748308967078,5.9915,171.74,171.63,2.0843]
[1748308967586,0.04169777,171.7,171.67,0.04025577]
[1748308967778,5.823,171.68,171.67,0.04025577]
[1748308967974,0.04169777,171.7,171.67,0.04025577]
[1748308971583,21.82503493,171.62,171.49,3.9628]
[1748308971778,3.8899,171.61,171.49,3.9628]
[1748308971979,21.82503493,171.58,171.49,1.9356]
[1748308972383,21.82503493,171.58,171.43,112.6872]
[1748308972688,0.04343769,171.52,171.49,0.03689578]
[1748308972890,0.04343769,171.52,171.5,187.72]
[1748308975790,0.04343769,171.52,171.51,5.8288]
[1748308977291,0.04343769,171.52,171.5,187.72]
[1748308978885,0.04343769,171.52,171.49,0.03689578]
[1748308979194,21.82177456,171.5,171.28,181.7]
[1748308979491,3.9746,171.49,171.33,2.0617]
[1748308979686,3.9746,171.49,171.34,181.7]
[1748308979889,2.0842,171.49,171.35,503.32]
[1748308980093,0.04129523,171.44,171.4,0.04093969]
[1748308980294,181.7,171.55,171.41,292.38]
[1748308980496,181.7,171.55,171.42,1.8981]
[1748308980894,23.79873535,171.58,171.43,2.0762]
[1748308981196,0.03818105,171.52,171.49,0.03838271]
[1748308981391,0.04367198,171.52,171.5,181.7]
[1748308981590,0.04367198,171.52,171.51,5.8288]
[1748308982196,0.04367198,171.52,171.5,181.7]
[1748308982197,23.79873535,171.64,171.55,5.8272]
[1748308982493,5.9875,171.64,171.51,1.9667]
[1748308982989,186.95199463,171.65,171.51,23.79113535]
[1748308982990,5.25199463,171.65,171.51,23.79113535]
[1748308983192,1.9857,171.69,171.63,5.8245]